bitfinex/quotes_SOLUSD_20250928
["timestamp","ask_amount","ask_price","bid_price","bid_amount"]
[1759089271900,34.06109472,206.67,206.66,15.21992623]
[1759089276447,8.06109472,206.67,206.66,16.90303288]
[1759089287057,8.06109472,206.67,206.66,21.74189864]
[1759089290142,8.06109472,206.67,206.66,14.55992623]
[1759089290343,8.77109472,206.67,206.66,14.55992623]
[1759089295249,10.45420137,206.67,206.66,14.55992623]
[1759089295452,8.77109472,206.67,206.66,14.55992623]
[1759089295648,10.45420137,206.67,206.66,14.55992623]
[1759089296250,8.77109472,206.67,206.66,14.55992623]
[1759089296470,8.06109472,206.67,206.66,14.55992623]
[1759089296656,8.06109472,206.67,206.66,16.95303288]
[1759089305989,8.06109472,206.67,206.66,21.79189864]
[1759089310693,8.06109472,206.67,206.66,58.79189864]
[1759089310875,8.06109472,206.67,206.66,58.08189864]
[1759089313394,8.06109472,206.67,206.66,53.24303288]
[1759089314390,8.06109472,206.67,206.66,51.55992623]
[1759089315177,8.06109472,206.67,206.66,14.55992623]
[1759089315493,8.06109472,206.67,206.66,16.24303288]
[1759089315700,8.06109472,206.67,206.66,53.24303288]
[1759089317098,8.06109472,206.67,206.66,16.24303288]
[1759089317284,8.06109472,206.67,206.66,53.24303288]
[1759089317684,8.06109472,206.67,206.66,58.08189864]
[1759089318286,8.06109472,206.67,206.66,21.08189864]
[1759089318792,8.06109472,206.67,206.66,58.08189864]
[1759089320896,8.06109472,206.67,206.66,58.75189864]
[1759089322981,8.06109472,206.67,206.66,21.75189864]
[1759089323202,8.06109472,206.67,206.66,58.75189864]
[1759089326183,8.06109472,206.67,206.66,59.6956321]
[1759089327000,8.06109472,206.67,206.66,54.85676634]
[1759089327604,8.06109472,206.67,206.66,59.6956321]
[1759089330289,8.06109472,206.67,206.66,22.6956321]
[1759089330809,8.06109472,206.67,206.66,59.6756321]
[1759089331005,8.06109472,206.67,206.66,22.6956321]
[1759089331191,8.06109472,206.67,206.66,59.6756321]
[1759089336201,8.06109472,206.67,206.66,17.18676634]
[1759089336515,8.76109472,206.67,206.66,14.55992623]
[1759089342221,11.38793483,206.67,206.66,14.55992623]
[1759089342424,26.0,206.64,206.63,0.2]
[1759089342810,26.7,206.64,206.63,0.2]
[1759089349326,29.32684011,206.64,206.63,0.2]
[1759089351238,26.7,206.64,206.63,0.2]
[1759089352139,29.32684011,206.64,206.63,0.2]
[1759089355042,79.92243412,206.64,206.63,0.2]
[1759089356347,42.92243412,206.64,206.63,0.2]
[1759089356542,83.18047363,206.64,206.63,0.2]
[1759089356846,46.18047363,206.64,206.63,0.2]
[1759089357020,83.18047363,206.64,206.63,0.2]
[1759089358822,79.92243412,206.64,206.63,0.2]
[1759089359023,26.0,206.6,206.55,14.6677034]
[1759089359327,26.0,206.59,206.55,0.1]
[1759089359735,26.0,206.59,206.56,14.5677034]
[1759089360825,26.0,206.59,206.56,15.2277034]
[1759089361249,2.62684011,206.61,206.56,15.2277034]
[1759089361430,2.62684011,206.61,206.56,14.5677034]
[1759089362147,63.0,206.63,206.57,3.28684011]
[1759089362148,37.0,206.63,206.57,3.28684011]
[1759089362327,2.62684011,206.64,206.57,3.28684011]
[1759089362528,26.0,206.63,206.57,3.28684011]
[1759089362829,26.0,206.63,206.58,14.56558153]
[1759089367849,26.0,206.63,206.58,17.19242164]
[1759089368255,26.0,206.63,206.58,2.62684011]
[1759089368752,26.0,206.63,206.59,2.62684011]
[1759089368955,26.0,206.64,206.59,17.19100741]
[1759089369252,3.29684011,206.66,206.59,2.62684011]
[1759089369253,26.0,206.63,206.59,2.62684011]
[1759089369648,26.0,206.63,206.6,14.56416729]
[1759089376759,26.66,206.63,206.6,14.56416729]
[1759089377572,26.0,206.63,206.6,14.56416729]
[1759089377861,0.66,206.62,206.6,14.56416729]
[1759089378553,0.66,206.62,206.57,2.62684011]
[1759089378754,0.66,206.62,206.57,17.8510074]
[1759089379054,0.66,206.62,206.57,3.28684011]
[1759089379360,0.66,206.64,206.58,3.28684011]
[1759089379548,0.66,206.64,206.58,2.62684011]
[1759089379862,2.62684011,206.66,206.59,3.28684011]
[1759089380039,2.62684011,206.66,206.59,17.85100741]
[1759089380355,0.66,206.65,206.59,17.85100741]
[1759089381256,0.66,206.65,206.59,15.2241673]
[1759089384546,140.86109472,206.67,206.6,3.27684011]
[1759089384864,3.26433718,206.66,206.61,0.65]
[1759089385038,0.67,206.66,206.61,0.65]
[1759089385453,0.67,206.66,206.61,15.21275333]
[1759089385933,0.67,206.66,206.61,14.56275333]
[1759089386566,0.67,206.65,206.61,15.21275333]
[1759089392272,28.35265139,206.64,206.58,2.33265139]
[1759089392481,2.35265139,206.63,206.58,0.65]
[1759089392670,0.67,206.63,206.59,13.79559401]
[1759089392963,8.70102244,206.62,206.59,13.79559401]
[1759089393168,8.70102244,206.62,206.58,0.65]
[1759089393368,8.70102244,206.62,206.58,14.44559401]
[1759089394571,8.70102244,206.62,206.58,0.65]
[1759089395067,8.70102244,206.62,206.58,2.59188897]
[1759089395966,8.70102244,206.62,206.58,0.65]
[1759089396170,8.70102244,206.62,206.59,2.59188897]
[1759089402175,0.67,206.61,206.59,2.59188897]
[1759089402472,0.67,206.6,206.59,2.59188897]
[1759089402682,0.67,206.61,206.59,2.59188897]
[1759089415690,8.72102244,206.62,206.59,2.59188897]
[1759089416089,8.03102244,206.62,206.6,0.7]
[1759089416390,8.03102244,206.62,206.61,0.7]
[1759089416592,8.03102244,206.62,206.59,0.7]
[1759089416795,8.03102244,206.62,206.6,0.7]
[1759089416972,8.03102244,206.62,206.6,2.59188897]
[1759089417998,8.72102244,206.62,206.6,2.59188897]
[1759089419214,8.72102244,206.62,206.58,2.38265139]
[1759089419517,8.72102244,206.62,206.59,14.5641673]
[1759089419992,0.69,206.61,206.59,14.5641673]
[1759089420386,0.69,206.6,206.56,2.38265139]
[1759089420605,0.69,206.6,206.59,14.5641673]
[1759089421610,8.03102244,206.62,206.59,14.5641673]
[1759089421796,0.69,206.61,206.59,14.5641673]
[1759089426812,8.03102244,206.62,206.59,14.5641673]
[1759089427011,0.69,206.6,206.57,1.68265139]
[1759089427399,26.69,206.59,206.58,14.56416729]
[1759089427601,31.64518294,206.59,206.55,0.1]
[1759089427918,3.27258375,206.58,206.55,0.1]
[1759089428118,1.68265139,206.57,206.55,0.1]
[1759089428312,2.37265139,206.57,206.55,0.1]
[1759089428518,0.69,206.57,206.55,0.1]
[1759089431322,26.0,206.58,206.55,0.1]
[1759089431625,0.66,206.56,206.55,0.1]
[1759089438424,0.66,206.56,206.55,2.04236045]
[1759089444711,26.0,206.59,206.55,4.42501184]
[1759089444916,26.66,206.59,206.55,4.42501184]
[1759089445119,26.66,206.59,206.55,2.48265139]
[1759089445440,26.66,206.59,206.56,5.04193139]
[1759089446332,0.66,206.58,206.56,5.04193139]
[1759089447518,26.0,206.59,206.56,5.74193139]
[1759089447722,26.0,206.59,206.56,7.42458278]
[1759089447932,26.0,206.59,206.56,2.38265139]
[1759089448134,26.0,206.59,206.57,7.42458278]
[1759089448343,0.66,206.61,206.57,8.12458278]
[1759089448538,0.66,206.6,206.57,7.42458278]
[1759089448728,0.66,206.6,206.56,3.33030142]
[1759089448925,0.66,206.6,206.56,10.7548842]
[1759089449243,0.66,206.6,206.56,3.33030142]
[1759089449736,0.66,206.6,206.57,10.7548842]
[1759089450329,34.03102244,206.62,206.57,10.7548842]
[1759089450529,0.66,206.59,206.57,10.7548842]
[1759089452445,0.66,206.59,206.57,13.38518562]
[1759089452825,0.66,206.59,206.57,2.63030142]
[1759089453035,0.66,206.59,206.58,13.38518562]
[1759089467559,0.66,206.6,206.58,13.38518562]
[1759089479766,34.03102244,206.62,206.59,0.71]
[1759089479972,3.26945296,206.61,206.59,0.71]
[1759089480153,34.03102244,206.62,206.58,2.63030142]
[1759089480345,3.26949705,206.61,206.6,14.56558153]
[1759089480748,3.94949705,206.61,206.6,14.56558153]
[1759089482367,3.26949705,206.61,206.6,14.56558153]
[1759089485575,3.26949705,206.61,206.6,17.90588295]
[1759089485873,34.03102244,206.62,206.6,17.90588295]
[1759089486174,34.03102244,206.62,206.61,2.63030142]
[1759089486469,34.03102244,206.62,206.61,17.19305475]
[1759089488260,34.03102244,206.62,206.61,14.56275333]
[1759089488576,34.03102244,206.62,206.61,17.19305475]
[1759089491480,34.03102244,206.62,206.61,14.56275333]
[1759089494489,34.72102244,206.62,206.61,14.56275333]
[1759089494698,34.03102244,206.62,206.61,14.56275333]
[1759089495201,34.03102244,206.62,206.61,17.19305475]
[1759089503994,8.03102244,206.62,206.61,17.90305475]
[1759089504195,8.03102244,206.62,206.61,17.19305475]
[1759089505875,8.03102244,206.62,206.61,17.90305475]
[1759089508204,8.03102244,206.62,206.61,14.56275333]
[1759089508414,8.03102244,206.62,206.61,16.24491278]
[1759089509916,8.03102244,206.62,206.61,21.08494956]
[1759089511586,8.03102244,206.62,206.61,58.02494956]
[1759089515114,0.7,206.64,206.61,21.08494956]
[1759089515314,0.7,206.64,206.61,56.34279011]
[1759089515513,26.0,206.68,206.63,1.68215945]
[1759089515722,0.7,206.67,206.64,1.68215945]
[1759089515924,0.7,206.66,206.64,1.68215945]
[1759089516123,26.0,206.68,206.64,1.68215945]
[1759089516323,0.7,206.67,206.65,14.5606329]
[1759089516503,0.7,206.66,206.65,14.5606329]
[1759089516819,8.7342298,206.66,206.65,14.5606329]
[1759089525926,8.0342298,206.66,206.65,16.95279235]
[1759089526137,8.0342298,206.66,206.65,21.79189227]
[1759089526632,8.0342298,206.66,206.65,58.73189227]
[1759089528834,8.0342298,206.66,206.65,72.32748628]
[1759089538044,8.0342298,206.66,206.65,35.38748628]
[1759089538235,8.0342298,206.66,206.65,72.30748628]
[1759089543747,8.0342298,206.66,206.65,71.59748628]
[1759089544149,8.0342298,206.66,206.65,72.30748628]
[1759089544825,8.0342298,206.66,206.65,71.59748628]
[1759089545232,8.0342298,206.66,206.65,72.30748628]
[1759089546159,8.0342298,206.66,206.65,71.59748628]
[1759089548049,8.7342298,206.66,206.65,71.59748628]
[1759089548564,8.7342298,206.66,206.65,66.75838636]
[1759089551452,8.7342298,206.66,206.65,71.59748628]
[1759089557766,8.0342298,206.66,206.65,71.59748628]
[1759089566264,8.0342298,206.66,206.65,58.00189227]
[1759089568286,8.0342298,206.66,206.65,58.94676492]
[1759089568876,8.7142298,206.66,206.65,14.5606329]
[1759089569278,8.7142298,206.66,206.65,51.4806329]
[1759089569681,8.7142298,206.66,206.65,14.5606329]
[1759089569887,8.7142298,206.66,206.65,51.4806329]
[1759089580912,8.7142298,206.66,206.65,14.5606329]
[1759089581081,8.7142298,206.66,206.65,51.4806329]
[1759089583098,8.0342298,206.66,206.65,51.4806329]
[1759089583692,8.7142298,206.66,206.65,51.4806329]
[1759089586499,8.0342298,206.66,206.65,51.4806329]
[1759089587208,8.7142298,206.66,206.65,51.4806329]
[1759089589215,8.0342298,206.66,206.65,51.4806329]
[1759089590309,0.68,206.67,206.65,51.4806329]
[1759089590507,28.6270321,206.71,206.65,51.4806329]
[1759089590706,0.72,206.66,206.65,36.92]
[1759089591295,0.72,206.66,206.65,51.47921963]
[1759089592513,28.6270321,206.71,206.65,51.47921963]
[1759089592695,0.72,206.67,206.65,51.47921963]
[1759089592895,0.72,206.67,206.65,36.92]
[1759089593107,0.72,206.67,206.66,14.55921963]
[1759089595117,0.72,206.67,206.66,51.47921963]
[1759089595328,0.72,206.7,206.66,54.81625173]
[1759089595511,0.72,206.7,206.68,2.6270321]
[1759089595707,0.72,206.7,206.69,36.92]
[1759089596012,0.72,206.7,206.69,51.47710022]
[1759089599603,26.0,206.71,206.69,51.47710022]
[1759089599808,0.72,206.7,206.69,51.47710022]
[1759089600004,0.72,206.7,206.69,36.92]
[1759089600231,0.72,206.73,206.69,52.18710023]
[1759089600414,0.72,206.75,206.7,3.3370321]
[1759089600612,0.72,206.74,206.71,36.92]
[1759089601134,0.72,206.74,206.71,51.47568764]
[1759089601333,0.72,206.77,206.72,0.71]
[1759089601641,0.92,206.8,206.75,2.6270321]
[1759089601812,3.26498437,206.79,206.76,40.2570321]
[1759089602011,0.92,206.8,206.77,36.92]
[1759089602210,0.2,206.8,206.77,40.18498437]
[1759089602431,0.72,206.79,206.77,40.18498437]
[1759089602636,0.72,206.79,206.77,36.92]
[1759089602811,0.72,206.79,206.78,1.94009943]
[1759089603233,0.2,206.8,206.78,1.94009943]
[1759089603435,0.2,206.8,206.79,36.9]
[1759089603743,0.92,206.8,206.78,36.9]
[1759089604117,0.2,206.8,206.79,14.55004001]
[1759089605030,0.92,206.8,206.79,14.55004001]
[1759089605338,0.2,206.8,206.79,14.55004001]
[1759089608629,0.2,206.8,206.79,15.26004001]
[1759089608833,0.2,206.8,206.79,17.88707211]
[1759089609129,0.2,206.8,206.79,22.72289589]
[1759089609915,0.92,206.8,206.79,14.55004001]
[1759089610530,0.2,206.8,206.79,51.45004001]
[1759089611332,0.2,206.8,206.79,14.55004001]
[1759089611542,0.2,206.8,206.79,51.45004001]
[1759089613636,0.2,206.8,206.79,14.55004001]
[1759089613838,0.2,206.8,206.79,51.45004001]
[1759089616250,0.2,206.8,206.79,54.78707211]
[1759089616741,0.2,206.8,206.79,59.62289589]
[1759089618726,0.2,206.8,206.79,73.2184899]
[1759089621744,0.2,206.8,206.79,68.38266612]
[1759089621941,0.92,206.8,206.79,14.55004001]
[1759089622146,0.92,206.8,206.79,51.45004001]
[1759089622542,0.2,206.8,206.79,51.45004001]
[1759089622945,0.2,206.8,206.79,54.07707211]
[1759089623145,0.2,206.8,206.79,68.38266612]
[1759089624029,0.2,206.8,206.79,73.2184899]
[1759089624858,0.2,206.8,206.79,73.2384899]
[1759089628348,0.2,206.83,206.82,39.59559401]
[1759089628553,0.2,206.83,206.82,79.12262611]
[1759089628750,0.2,206.88,206.83,13.59559401]
[1759089628947,0.2,206.88,206.86,16.22262611]
[1759089629143,0.2,206.88,206.86,53.24262611]
[1759089629344,0.2,206.88,206.86,53.95262611]
[1759089629544,0.2,206.88,206.86,55.89131507]
[1759089629954,0.92,206.87,206.86,18.16131507]
[1759089630155,9.25599465,206.87,206.86,1.93868896]
[1759089630359,9.25599465,206.87,206.86,38.95868896]
[1759089633947,8.53599465,206.87,206.86,1.93868896]
[1759089634147,8.53599465,206.87,206.86,46.20158859]
[1759089635571,8.53599465,206.87,206.86,45.49158859]
[1759089636773,8.53599465,206.87,206.86,46.20158859]
[1759089636954,8.53599465,206.87,206.86,59.7971826]
[1759089638746,8.53599465,206.87,206.86,22.7571826]
[1759089638983,9.25599465,206.87,206.86,59.0871826]
[1759089639174,8.53599465,206.87,206.86,59.0871826]
[1759089639469,8.53599465,206.87,206.86,59.7971826]
[1759089641474,8.53599465,206.87,206.86,22.7571826]
[1759089641853,8.53599465,206.87,206.86,59.8171826]
[1759089643773,8.53599465,206.87,206.86,22.0471826]
[1759089643973,8.53599465,206.87,206.86,59.0871826]
[1759089645071,8.53599465,206.87,206.86,22.0471826]
[1759089645271,8.53599465,206.87,206.86,59.0871826]
[1759089649474,8.53599465,206.87,206.86,57.40847034]
[1759089649677,8.53599465,206.87,206.86,59.0871826]
[1759089650407,8.53599465,206.87,206.86,59.0671826]
[1759089652705,8.53599465,206.87,206.86,59.7671826]
[1759089653705,8.53599465,206.87,206.86,22.7471826]
[1759089653891,8.53599465,206.87,206.86,59.7671826]
[1759089654093,8.53599465,206.87,206.86,59.0671826]
[1759089655894,8.53599465,206.87,206.86,59.0471826]
[1759089656101,9.25599465,206.87,206.86,59.0471826]
[1759089656300,8.53599465,206.87,206.86,59.0471826]
[1759089657106,9.25599465,206.87,206.86,59.0471826]
[1759089657405,8.53599465,206.87,206.86,59.0471826]
[1759089662414,8.53599465,206.87,206.86,22.0471826]
[1759089662593,8.53599465,206.87,206.86,59.0471826]
[1759089663719,8.53599465,206.87,206.86,59.7471826]
[1759089666507,0.2,206.88,206.87,39.59559401]
[1759089666703,0.2,206.88,206.87,121.27430627]
[1759089667314,0.2,206.88,206.87,123.21252553]
[1759089667512,0.2,206.88,206.87,128.04647922]
[1759089671105,0.2,206.88,206.87,102.04647922]
[1759089671307,0.2,206.89,206.87,116.60647922]
[1759089671508,0.2,206.89,206.88,52.95430627]
[1759089671700,0.2,206.89,206.88,67.51430627]
[1759089671902,0.2,206.89,206.88,69.45233771]
[1759089672626,1e-08,206.89,206.88,69.45233771]
[1759089673313,1e-08,206.89,206.88,74.28605774]
[1759089673507,1e-08,206.89,206.88,74.30605774]
[1759089675012,0.68000001,206.89,206.88,22.04605774]
[1759089675324,0.68000001,206.89,206.88,85.04605774]
[1759089675626,2.35871227,206.89,206.88,0.32803144]
[1759089676334,0.68000001,206.89,206.88,0.32803144]
[1759089676623,26.0,206.88,206.84,37.08]
[1759089676827,1.67871226,206.85,206.84,37.08]
[1759089677127,2.25871226,206.85,206.84,37.08]
[1759089677626,2.25871226,206.85,206.83,37.08]
[1759089677830,2.25871226,206.84,206.83,37.08]
[1759089678005,0.58,206.84,206.83,37.08]
[1759089678622,0.58,206.84,206.83,51.62510194]
[1759089678924,0.58,206.84,206.83,53.3038142]
[1759089679129,0.58,206.84,206.83,51.62510194]
[1759089680223,0.58,206.84,206.83,14.54510194]
[1759089680433,0.58,206.84,206.83,37.08]
[1759089680815,0.58,206.84,206.83,39.019535]
[1759089682318,1.67871226,206.85,206.83,39.019535]
[1759089682522,0.58,206.84,206.83,39.019535]
[1759089685938,2.25871226,206.86,206.83,39.019535]
[1759089686142,0.58,206.85,206.83,39.019535]
[1759089686628,0.58,206.87,206.83,39.019535]
[1759089686820,0.58,206.87,206.83,37.08]
[1759089687020,0.58,206.87,206.84,1.93934693]
[1759089687220,0.58,206.87,206.85,37.08]
[1759089687632,0.68424181,206.86,206.85,39.01934693]
[1759089688212,0.10424181,206.86,206.85,39.01934693]
[1759089688939,0.68424181,206.86,206.85,39.01934693]
[1759089690418,0.10424181,206.86,206.85,39.01934693]
[1759089693520,0.68424181,206.86,206.85,1.93934693]
[1759089693726,0.10424181,206.86,206.84,37.06]
[1759089693925,0.10424181,206.86,206.85,1.93934693]
[1759089694940,0.10424181,206.86,206.84,37.06]
[1759089695320,0.10424181,206.86,206.85,1.93934693]
[1759089695722,0.10424181,206.86,206.84,37.06]
[1759089695943,0.58,206.85,206.84,38.99934692]
[1759089697330,0.10424181,206.86,206.84,38.99934692]
[1759089697727,0.10424181,206.86,206.84,37.06]
[1759089698427,0.10424181,206.86,206.84,40.35535593]
[1759089699066,0.10424181,206.86,206.84,37.06]
[1759089699354,0.10424181,206.86,206.85,3.29535593]
[1759089701351,0.10424181,206.86,206.84,37.06]
[1759089701546,0.58,206.85,206.84,38.99934693]
[1759089702149,0.58,206.85,206.84,1.93934693]
[1759089703053,0.10424181,206.86,206.84,1.93934693]
[1759089703437,0.68424181,206.86,206.84,1.93934693]
[1759089704642,0.10424181,206.86,206.84,1.93934693]
[1759089704845,0.10424181,206.86,206.84,2.61934693]
[1759089705949,0.10424181,206.86,206.85,0.68]
[1759089706352,0.10424181,206.86,206.85,2.61934692]
[1759089706564,0.10424181,206.86,206.85,1.93934692]
[1759089706764,0.10424181,206.86,206.83,37.06]
[1759089707061,0.68424181,206.86,206.84,1.93934693]
[1759089707747,0.10139194,206.85,206.82,37.72]
[1759089707949,0.10139194,206.85,206.83,2.71535593]
[1759089711067,0.68139194,206.85,206.83,2.71535593]
[1759089711362,0.10139194,206.85,206.81,37.73]
[1759089711662,0.10139194,206.85,206.82,3.41443411]
[1759089713665,0.68139194,206.85,206.82,2.72443411]
[1759089714854,0.10139194,206.85,206.82,2.72443411]
[1759089715960,0.10139194,206.85,206.82,3.41443411]
[1759089717643,0.10139194,206.85,206.82,0.69]
[1759089717839,0.10139194,206.85,206.83,2.72443411]
[1759089718143,0.10139194,206.85,206.84,0.69]
[1759089722456,0.10139194,206.85,206.84,2.62934693]
[1759089726362,0.10139194,206.85,206.84,5.25275057]
[1759089727661,0.20164379,206.85,206.84,5.25275057]
[1759089728177,0.20164379,206.85,206.84,2.62934693]
[1759089728575,0.20164379,206.85,206.84,1.93934693]
[1759089728985,0.78164379,206.85,206.84,1.93934693]
[1759089729278,3.30365549,206.85,206.8,37.02]
[1759089729584,0.58,206.84,206.8,37.71]
[1759089729776,2.72365549,206.85,206.8,37.71]
[1759089729977,3.30365549,206.85,206.81,3.30365549]
[1759089730856,3.30365549,206.85,206.81,3.99365549]
[1759089731672,0.10025185,206.85,206.82,0.66]
[1759089731978,0.10025185,206.85,206.83,1.939535]
[1759089732180,0.10025185,206.85,206.83,2.599535]
[1759089734385,0.10025185,206.85,206.84,0.66]
[1759089737307,0.10025185,206.85,206.83,1.939535]
[1759089737598,0.10025185,206.85,206.83,0.66]
[1759089738386,0.10025185,206.85,206.83,2.59953499]
[1759089739174,0.10025185,206.85,206.83,0.66]
[1759089739388,0.10025185,206.85,206.84,1.93953499]
[1759089739985,0.10025185,206.85,206.84,2.59953499]
[1759089741275,0.10025185,206.85,206.84,5.22293863]
[1759089744397,0.10025185,206.85,206.84,2.59953499]
[1759089747690,0.19607742,206.85,206.84,2.59953499]
[1759089749122,0.09582557,206.85,206.84,2.59953499]
[1759089751715,0.09582557,206.85,206.84,5.22293863]
[1759089754209,0.09582557,206.85,206.84,4.27812021]
[1759089760721,0.09582557,206.85,206.84,9.11277501]
[1759089762428,0.09582557,206.85,206.84,7.43418979]
[1759089762727,0.09582557,206.85,206.84,9.11277501]
[1759089763108,0.09582557,206.85,206.84,46.09277501]
[1759089767731,0.18882041,206.85,206.84,46.09277501]
[1759089769033,0.09299484,206.85,206.84,46.09277501]
[1759089770615,0.09299484,206.85,206.84,40.59812021]
[1759089770811,0.09299484,206.85,206.84,38.91953499]
[1759089771023,0.67299484,206.85,206.84,1.93953499]
[1759089771223,0.67299484,206.85,206.84,38.91953499]
[1759089771716,0.09299484,206.85,206.84,38.91953499]
[1759089775246,0.09299484,206.85,206.84,38.89953499]
[1759089782035,0.09299484,206.85,206.84,1.93953499]
[1759089782236,0.09299484,206.85,206.84,38.89953499]
[1759089783055,0.09299484,206.85,206.84,39.61953499]
[1759089785346,0.09299484,206.85,206.84,41.29812021]
[1759089787754,0.19879522,206.85,206.84,41.29812021]
[1759089789058,0.10580038,206.85,206.84,41.29812021]
[1759089792048,0.10580038,206.85,206.84,2.65953499]
[1759089792255,0.10580038,206.85,206.84,38.87953499]
[1759089792638,0.68580038,206.85,206.84,1.93953499]
[1759089792845,2.3643856,206.85,206.84,1.93953499]
[1759089793263,29.95133836,206.85,206.84,1.93953499]
[1759089793454,31.62992358,206.85,206.84,1.93953499]
[1759089793655,28.3643856,206.85,206.84,1.93953499]
[1759089793857,26.68580038,206.85,206.84,1.93953499]
[1759089794050,28.3643856,206.85,206.84,1.93953499]
[1759089796969,31.62788479,206.85,206.79,36.98]
[1759089797171,31.62788479,206.85,206.76,1.67858522]
[1759089797172,1.67858522,206.8,206.73,0.67]
[1759089797351,1.67858522,206.76,206.72,0.67]
[1759089797549,0.58,206.75,206.74,14.55286328]
[1759089797748,5.52283212,206.75,206.67,0.67]
[1759089798073,1.67858522,206.72,206.69,14.55568763]
[1759089798372,3.83875952,206.76,206.7,0.67]
[1759089798571,1.67858522,206.74,206.7,0.67]
[1759089798775,1.67858522,206.74,206.71,0.67]
[1759089798976,1.67858522,206.74,206.71,14.55498145]
[1759089799851,1.67858522,206.74,206.71,0.67]
[1759089800047,1.67858522,206.75,206.71,0.67]
[1759089800350,2.25858522,206.75,206.71,0.67]
[1759089800755,1.67858522,206.73,206.69,0.72]
[1759089800953,1.67858522,206.73,206.7,0.72]
[1759089801163,1.67858522,206.72,206.67,18.7]
[1759089801363,2.25858522,206.71,206.67,17.98]
[1759089801677,2.25858522,206.71,206.67,18.7]
[1759089802363,2.25858522,206.71,206.67,17.98]
[1759089802565,2.25858522,206.71,206.67,18.7]
[1759089802955,0.58,206.7,206.65,0.72]
[1759089803181,1.67858522,206.69,206.65,0.72]
[1759089803374,1.67858522,206.67,206.63,0.2]
[1759089803579,2.25858522,206.67,206.63,0.2]
[1759089803958,1.67858522,206.66,206.63,0.2]
[1759089804164,2.25858522,206.67,206.63,0.2]
[1759089805670,2.25858522,206.67,206.63,0.92]
[1759089805671,1.67858522,206.67,206.63,0.92]
[1759089807789,0.08798337,206.64,206.63,0.92]
[1759089810903,0.08798337,206.64,206.63,0.2]
[1759089811402,0.08798337,206.64,206.63,0.92]
[1759089814076,0.08798337,206.64,206.63,2.59858522]
[1759089814276,0.08798337,206.64,206.63,3.5483131]
[1759089817575,0.08798337,206.64,206.63,0.92]
[1759089820800,0.08798337,206.64,206.63,5.75956831]
[1759089821096,0.08798337,206.64,206.63,21.98347542]
[1759089821298,0.08798337,206.64,206.63,23.9245163]
[1759089824218,0.08798337,206.64,206.63,60.9845163]
[1759089827698,0.17671466,206.64,206.63,60.9845163]
[1759089829202,0.08873129,206.64,206.63,60.9845163]
[1759089830506,0.10562703,206.65,206.64,39.59559401]
[1759089830711,0.10562703,206.65,206.64,42.93390711]
[1759089831230,0.10562703,206.65,206.64,44.87438301]
[1759089832017,0.09334771,206.66,206.64,44.87438301]
[1759089832217,0.09334771,206.66,206.65,51.36559401]
[1759089832527,0.09334771,206.66,206.65,56.20469393]
[1759089832829,0.09334771,206.66,206.65,58.14516983]
[1759089834328,0.09334771,206.66,206.65,60.77348293]
[1759089834935,1e-08,206.68,206.66,18.85222021]
[1759089835228,1e-08,206.68,206.67,81.91222021]
[1759089835423,1e-08,206.68,206.67,82.62222021]
[1759089835610,1e-08,206.68,206.67,84.56241375]
[1759089836408,1e-08,206.68,206.67,89.40104538]
[1759089841527,1e-08,206.68,206.67,52.34104538]
[1759089841743,1e-08,206.68,206.67,89.38104538]
[1759089842131,1e-08,206.68,206.67,168.68104538]
[1759089842931,1e-08,206.69,206.68,39.59559401]
[1759089843118,0.58,206.78,206.7,39.59559401]
[1759089843438,0.58,206.78,206.7,79.26390711]
[1759089843621,0.58,206.78,206.7,81.91391245]
[1759089843928,132.8,206.88,206.71,13.59559401]
[1759089844137,0.58,206.8,206.72,16.22390711]
[1759089844322,0.58,206.8,206.72,53.97390711]
[1759089844632,0.58,206.8,206.72,57.22596161]
[1759089845123,0.58,206.8,206.72,62.06342291]
[1759089845631,0.58,206.83,206.76,13.59559401]
[1759089845839,0.58,206.83,206.82,2.6283131]
[1759089846014,0.58,206.83,206.82,39.6883131]
[1759089846335,0.58,206.83,206.82,42.4166262]
[1759089846531,0.58,206.85,206.82,42.4166262]
[1759089846713,0.58,206.85,206.84,2.6283131]
[1759089846914,0.58,206.85,206.84,39.6883131]
[1759089848122,0.58,206.85,206.84,44.5229679]